Workbook

Sheet Disclaimer
D10: Disclaimer
D12: This Design Calculation Spreadsheet is provided "as-is" without warranty of any kind. The Montana Department of Transportation makes no representations or warranties whatsoever with respect to the accuracy or completeness of this tool and assumes no responsibility for the suitability of this tool for a particular purpose; and MDT will not be liable for any damages incurred as a result of errors in this tool. By selecting Accept, you are agreeing to these terms and conditions.
K22: WARNING: For the tool to work properly, please make sure you click on "Enable Content/Macros" if the security warning appears.

Sheet Vertical Curves (hidden)
A1: Stopping Sight Distance (SSD) and Passing Sight Distance (PSD)
G2: Curve VPI Station | H2: Curve Length (ft) | I2: Curve Direction, CREST or SAG | J2: Entrance Grade (%) | K2: Exit Grade (%) | L2: SSDSTEEPER GRADE (ft) | M2: KSSD | N2: LMIN, SSD (ft) | O2: Meet SSD | P2: KDRIVER COMFORT | Q2: LMIN, DRIVER COMFORT (ft) | R2: Meet DC | S2: PSD (ft) | T2: KPSD | U2: LMIN, PSD (ft) | V2: Meet PSD
A3: Design Speed | B3: 55 | C3: MPH | L3: =IF(OR($B$3="",H3="",I3="",J3="",K3=""),"",ROUNDUP(1.47*$B$3*2.5+$B$3^2/(30*(11.2/32.2-MAX(ABS(J3),ABS(K3))/100)),0)) ->  | M3: =IF(L3="","",IF(I3="CREST",ROUNDUP(L3^2/2158,0),IF(I3="SAG",ROUNDUP(L3^2/(400+3.5*L3),0), " "))) ->  | N3: =IF(M3="","",CEILING(MAX(M3*ABS(J3-K3),3*$B$3),50)) ->  | O3: =IF(N3="","",IF(H3>=N3,"Yes","No")) ->  | P3: =IF(L3="","",ROUND($B$3^2/46.5,0)) ->  | Q3: =IF(M3="","",CEILING(MAX(P3*ABS(J3-K3),3*$B$3),50)) ->  | R3: =IF(P3="","",IF(H3>=Q3,"Yes","No")) ->  | S3: =IF(OR($B$3="",H3="",I3="",J3="",K3=""),"",VLOOKUP($B$3,'RDM Ex. 2-11'!$A$6:$D$18,4,FALSE)) ->  | T3: =IF(S3="","",IF(I3="CREST",ROUND(S3^2/2800,0),"")) ->  | U3: =IF(T3="","",CEILING(MAX(T3*ABS(J3-K3),3*$B$3),50)) ->  | V3: =IF(U3="","",IF(H3>=U3,"Yes","No")) ->  | X3: Crest Curves | Y3: =COUNTIF(I3:I48,"CREST") -> 0
A4: Maximum Grade | B4: 4 | C4: % | P4: =IF(L4="","",ROUND($B$3^2/46.5,0)) ->  | Q4: =IF(M4="","",CEILING(MAX(P4*ABS(J4-K4),3*$B$3),50)) ->  | R4: =IF(P4="","",IF(H4>=Q4,"Yes","No")) ->  | S4: =IF(OR($B$3="",H4="",I4="",J4="",K4=""),"",VLOOKUP($B$3,'RDM Ex. 2-11'!$A$6:$D$18,4,FALSE)) ->  | X4: Sag Curves | Y4: =COUNTIF(I3:I48,"SAG") -> 0
S5: =IF(OR($B$3="",H5="",I5="",J5="",K5=""),"",VLOOKUP($B$3,'RDM Ex. 2-11'!$A$6:$D$18,4,FALSE)) ->  | X5: Number of Curves Not Meeting Design Speed SSD | Y5: =COUNTIF(O3:O48,"No") -> 0
S6: =IF(OR($B$3="",H6="",I6="",J6="",K6=""),"",VLOOKUP($B$3,'RDM Ex. 2-11'!$A$6:$D$18,4,FALSE)) ->  | X6: Number of Curves Not Meeting Design Speed PSD | Y6: =COUNTIF(V3:V48,"No") -> 0
S7: =IF(OR($B$3="",H7="",I7="",J7="",K7=""),"",VLOOKUP($B$3,'RDM Ex. 2-11'!$A$6:$D$18,4,FALSE)) -> 
S8: =IF(OR($B$3="",H8="",I8="",J8="",K8=""),"",VLOOKUP($B$3,'RDM Ex. 2-11'!$A$6:$D$18,4,FALSE)) -> 
S9: =IF(OR($B$3="",H9="",I9="",J9="",K9=""),"",VLOOKUP($B$3,'RDM Ex. 2-11'!$A$6:$D$18,4,FALSE)) -> 
S10: =IF(OR($B$3="",H10="",I10="",J10="",K10=""),"",VLOOKUP($B$3,'RDM Ex. 2-11'!$A$6:$D$18,4,FALSE)) -> 
S11: =IF(OR($B$3="",H11="",I11="",J11="",K11=""),"",VLOOKUP($B$3,'RDM Ex. 2-11'!$A$6:$D$18,4,FALSE)) -> 
S12: =IF(OR($B$3="",H12="",I12="",J12="",K12=""),"",VLOOKUP($B$3,'RDM Ex. 2-11'!$A$6:$D$18,4,FALSE)) -> 
S13: =IF(OR($B$3="",H13="",I13="",J13="",K13=""),"",VLOOKUP($B$3,'RDM Ex. 2-11'!$A$6:$D$18,4,FALSE)) -> 
S14: =IF(OR($B$3="",H14="",I14="",J14="",K14=""),"",VLOOKUP($B$3,'RDM Ex. 2-11'!$A$6:$D$18,4,FALSE)) -> 
S15: =IF(OR($B$3="",H15="",I15="",J15="",K15=""),"",VLOOKUP($B$3,'RDM Ex. 2-11'!$A$6:$D$18,4,FALSE)) -> 
S16: =IF(OR($B$3="",H16="",I16="",J16="",K16=""),"",VLOOKUP($B$3,'RDM Ex. 2-11'!$A$6:$D$18,4,FALSE)) -> 
S17: =IF(OR($B$3="",H17="",I17="",J17="",K17=""),"",VLOOKUP($B$3,'RDM Ex. 2-11'!$A$6:$D$18,4,FALSE)) -> 
S18: =IF(OR($B$3="",H18="",I18="",J18="",K18=""),"",VLOOKUP($B$3,'RDM Ex. 2-11'!$A$6:$D$18,4,FALSE)) -> 
S19: =IF(OR($B$3="",H19="",I19="",J19="",K19=""),"",VLOOKUP($B$3,'RDM Ex. 2-11'!$A$6:$D$18,4,FALSE)) -> 
S20: =IF(OR($B$3="",H20="",I20="",J20="",K20=""),"",VLOOKUP($B$3,'RDM Ex. 2-11'!$A$6:$D$18,4,FALSE)) -> 
S21: =IF(OR($B$3="",H21="",I21="",J21="",K21=""),"",VLOOKUP($B$3,'RDM Ex. 2-11'!$A$6:$D$18,4,FALSE)) -> 
S22: =IF(OR($B$3="",H22="",I22="",J22="",K22=""),"",VLOOKUP($B$3,'RDM Ex. 2-11'!$A$6:$D$18,4,FALSE)) -> 
S23: =IF(OR($B$3="",H23="",I23="",J23="",K23=""),"",VLOOKUP($B$3,'RDM Ex. 2-11'!$A$6:$D$18,4,FALSE)) -> 
S24: =IF(OR($B$3="",H24="",I24="",J24="",K24=""),"",VLOOKUP($B$3,'RDM Ex. 2-11'!$A$6:$D$18,4,FALSE)) -> 
S25: =IF(OR($B$3="",H25="",I25="",J25="",K25=""),"",VLOOKUP($B$3,'RDM Ex. 2-11'!$A$6:$D$18,4,FALSE)) -> 
S26: =IF(OR($B$3="",H26="",I26="",J26="",K26=""),"",VLOOKUP($B$3,'RDM Ex. 2-11'!$A$6:$D$18,4,FALSE)) -> 
S27: =IF(OR($B$3="",H27="",I27="",J27="",K27=""),"",VLOOKUP($B$3,'RDM Ex. 2-11'!$A$6:$D$18,4,FALSE)) -> 
S28: =IF(OR($B$3="",H28="",I28="",J28="",K28=""),"",VLOOKUP($B$3,'RDM Ex. 2-11'!$A$6:$D$18,4,FALSE)) -> 
S29: =IF(OR($B$3="",H29="",I29="",J29="",K29=""),"",VLOOKUP($B$3,'RDM Ex. 2-11'!$A$6:$D$18,4,FALSE)) -> 
S30: =IF(OR($B$3="",H30="",I30="",J30="",K30=""),"",VLOOKUP($B$3,'RDM Ex. 2-11'!$A$6:$D$18,4,FALSE)) -> 
S31: =IF(OR($B$3="",H31="",I31="",J31="",K31=""),"",VLOOKUP($B$3,'RDM Ex. 2-11'!$A$6:$D$18,4,FALSE)) -> 
S32: =IF(OR($B$3="",H32="",I32="",J32="",K32=""),"",VLOOKUP($B$3,'RDM Ex. 2-11'!$A$6:$D$18,4,FALSE)) -> 
S33: =IF(OR($B$3="",H33="",I33="",J33="",K33=""),"",VLOOKUP($B$3,'RDM Ex. 2-11'!$A$6:$D$18,4,FALSE)) -> 
S34: =IF(OR($B$3="",H34="",I34="",J34="",K34=""),"",VLOOKUP($B$3,'RDM Ex. 2-11'!$A$6:$D$18,4,FALSE)) -> 
S35: =IF(OR($B$3="",H35="",I35="",J35="",K35=""),"",VLOOKUP($B$3,'RDM Ex. 2-11'!$A$6:$D$18,4,FALSE)) -> 
S36: =IF(OR($B$3="",H36="",I36="",J36="",K36=""),"",VLOOKUP($B$3,'RDM Ex. 2-11'!$A$6:$D$18,4,FALSE)) -> 
S37: =IF(OR($B$3="",H37="",I37="",J37="",K37=""),"",VLOOKUP($B$3,'RDM Ex. 2-11'!$A$6:$D$18,4,FALSE)) -> 
S38: =IF(OR($B$3="",H38="",I38="",J38="",K38=""),"",VLOOKUP($B$3,'RDM Ex. 2-11'!$A$6:$D$18,4,FALSE)) -> 
S39: =IF(OR($B$3="",H39="",I39="",J39="",K39=""),"",VLOOKUP($B$3,'RDM Ex. 2-11'!$A$6:$D$18,4,FALSE)) -> 
S40: =IF(OR($B$3="",H40="",I40="",J40="",K40=""),"",VLOOKUP($B$3,'RDM Ex. 2-11'!$A$6:$D$18,4,FALSE)) -> 
S41: =IF(OR($B$3="",H41="",I41="",J41="",K41=""),"",VLOOKUP($B$3,'RDM Ex. 2-11'!$A$6:$D$18,4,FALSE)) -> 
S42: =IF(OR($B$3="",H42="",I42="",J42="",K42=""),"",VLOOKUP($B$3,'RDM Ex. 2-11'!$A$6:$D$18,4,FALSE)) -> 
S43: =IF(OR($B$3="",H43="",I43="",J43="",K43=""),"",VLOOKUP($B$3,'RDM Ex. 2-11'!$A$6:$D$18,4,FALSE)) -> 
S44: =IF(OR($B$3="",H44="",I44="",J44="",K44=""),"",VLOOKUP($B$3,'RDM Ex. 2-11'!$A$6:$D$18,4,FALSE)) -> 
S45: =IF(OR($B$3="",H45="",I45="",J45="",K45=""),"",VLOOKUP($B$3,'RDM Ex. 2-11'!$A$6:$D$18,4,FALSE)) -> 
S46: =IF(OR($B$3="",H46="",I46="",J46="",K46=""),"",VLOOKUP($B$3,'RDM Ex. 2-11'!$A$6:$D$18,4,FALSE)) -> 
S47: =IF(OR($B$3="",H47="",I47="",J47="",K47=""),"",VLOOKUP($B$3,'RDM Ex. 2-11'!$A$6:$D$18,4,FALSE)) -> 
S48: =IF(OR($B$3="",H48="",I48="",J48="",K48=""),"",VLOOKUP($B$3,'RDM Ex. 2-11'!$A$6:$D$18,4,FALSE)) -> 

Sheet Existing Vertical Curves (hidden)
A1: Stopping Sight Distance (SSD) and Passing Sight Distance (PSD)
G2: Curve VPI Station | H2: Curve Length (ft) | I2: Curve Direction, CREST or SAG | J2: Entrance Grade (%) | K2: Exit Grade (%) | L2: SSDSTEEPER GRADE (ft) | M2: KSSD | N2: LMIN, SSD (ft) | O2: Meet SSD | P2: PSD (ft) | Q2: KPSD | R2: LMIN, PSD (ft) | S2: Meet PSD
A3: Design Speed | B3: 55 | C3: MPH | G3: HSIP 78-1(10)5 | H3: 1150 | I3: CREST | J3: -2.8 | K3: -6.4 | L3: =IF(OR($B$3="",H3="",I3="",J3="",K3=""),"",ROUNDUP(1.47*$B$3*2.5+$B$3^2/(30*(11.2/32.2-MAX(ABS(J3),ABS(K3))/100)),0)) -> 558 | M3: =IF(L3="","",IF(I3="CREST",ROUNDUP(L3^2/2158,0),IF(I3="SAG",ROUNDUP(L3^2/(400+3.5*L3),0), " "))) -> 145 | N3: =IF(M3="","",CEILING(MAX(M3*ABS(J3-K3),3*$B$3),50)) -> 550 | O3: =IF(N3="","",IF(H3>=N3,"Yes","No")) -> Yes | P3: =IF(OR($B$3="",H3="",I3="",J3="",K3=""),"",VLOOKUP($B$3,'RDM Ex. 2-11'!$A$6:$D$18,4,FALSE)) -> 900 | Q3: =IF(P3="","",IF(I3="CREST",ROUND(P3^2/2800,0),"")) -> 289 | R3: =IF(Q3="","",CEILING(MAX(Q3*ABS(J3-K3),3*$B$3),50)) -> 1050 | S3: =IF(R3="","",IF(H3>=R3,"Yes","No")) -> Yes | U3: Crest Curves | V3: =COUNTIF(I3:I48,"CREST") -> 17
A4: Maximum Grade | B4: 4 | C4: % | H4: 495 | I4: CREST | J4: -6.4 | K4: -8.901 | L4: =IF(OR($B$3="",H4="",I4="",J4="",K4=""),"",ROUNDUP(1.47*$B$3*2.5+$B$3^2/(30*(11.2/32.2-MAX(ABS(J4),ABS(K4))/100)),0)) -> 592 | M4: =IF(L4="","",IF(I4="CREST",ROUNDUP(L4^2/2158,0),IF(I4="SAG",ROUNDUP(L4^2/(400+3.5*L4),0), " "))) -> 163 | N4: =IF(M4="","",CEILING(MAX(M4*ABS(J4-K4),3*$B$3),50)) -> 450 | O4: =IF(N4="","",IF(H4>=N4,"Yes","No")) -> Yes | P4: =IF(OR($B$3="",H4="",I4="",J4="",K4=""),"",VLOOKUP($B$3,'RDM Ex. 2-11'!$A$6:$D$18,4,FALSE)) -> 900 | Q4: =IF(P4="","",IF(I4="CREST",ROUND(P4^2/2800,0),"")) -> 289 | R4: =IF(Q4="","",CEILING(MAX(Q4*ABS(J4-K4),3*$B$3),50)) -> 750 | S4: =IF(R4="","",IF(H4>=R4,"Yes","No")) -> No | U4: Sag Curves | V4: =COUNTIF(I3:I48,"SAG") -> 15
G5: Connection on 400' VC | P5: =IF(OR($B$3="",H5="",I5="",J5="",K5=""),"",VLOOKUP($B$3,'RDM Ex. 2-11'!$A$6:$D$18,4,FALSE)) ->  | U5: Number of Curves Not Meeting Design Speed SSD | V5: =COUNTIF(O3:O48,"No") -> 28
G6: S-289(2) | H6: 400 | I6: CREST | J6: -8.38 | K6: -10.62 | L6: 620 | M6: 179 | N6: 450 | O6: No | P6: =IF(OR($B$3="",H6="",I6="",J6="",K6=""),"",VLOOKUP($B$3,'RDM Ex. 2-11'!$A$6:$D$18,4,FALSE)) -> 900 | Q6: 289 | R6: 650 | S6: No | U6: Number of Curves Not Meeting Design Speed PSD | V6: =COUNTIF(S3:S48,"No") -> 16
H7: 300 | I7: SAG | J7: -10.62 | K7: -3.81 | L7: 620 | M7: 150 | N7: 1050 | O7: No | P7: =IF(OR($B$3="",H7="",I7="",J7="",K7=""),"",VLOOKUP($B$3,'RDM Ex. 2-11'!$A$6:$D$18,4,FALSE)) -> 900
H8: 520 | I8: SAG | J8: -3.81 | K8: 1.41 | L8: 528 | M8: 125 | N8: 700 | O8: No | P8: =IF(OR($B$3="",H8="",I8="",J8="",K8=""),"",VLOOKUP($B$3,'RDM Ex. 2-11'!$A$6:$D$18,4,FALSE)) -> 900
H9: 800 | I9: CREST | J9: 1.41 | K9: -9.92 | L9: 608 | M9: 172 | N9: 1950 | O9: No | P9: =IF(OR($B$3="",H9="",I9="",J9="",K9=""),"",VLOOKUP($B$3,'RDM Ex. 2-11'!$A$6:$D$18,4,FALSE)) -> 900 | Q9: 289 | R9: 3300 | S9: No
H10: 400 | I10: SAG | J10: -9.92 | K10: -3 | L10: 608 | M10: 147 | N10: 1050 | O10: No | P10: =IF(OR($B$3="",H10="",I10="",J10="",K10=""),"",VLOOKUP($B$3,'RDM Ex. 2-11'!$A$6:$D$18,4,FALSE)) -> 900
H11: 600 | I11: SAG | J11: -3 | K11: 2.28 | L11: 520 | M11: 122 | N11: 650 | O11: No | P11: =IF(OR($B$3="",H11="",I11="",J11="",K11=""),"",VLOOKUP($B$3,'RDM Ex. 2-11'!$A$6:$D$18,4,FALSE)) -> 900
H12: 300 | I12: SAG | J12: 2.28 | K12: 4.112 | L12: 531 | M12: 125 | N12: 250 | O12: Yes | P12: =IF(OR($B$3="",H12="",I12="",J12="",K12=""),"",VLOOKUP($B$3,'RDM Ex. 2-11'!$A$6:$D$18,4,FALSE)) -> 900
H13: 600 | I13: CREST | J13: 4.112 | K13: -8.55 | L13: 587 | M13: 160 | N13: 2050 | O13: No | P13: =IF(OR($B$3="",H13="",I13="",J13="",K13=""),"",VLOOKUP($B$3,'RDM Ex. 2-11'!$A$6:$D$18,4,FALSE)) -> 900 | Q13: 289 | R13: 3700 | S13: No
H14: 800 | I14: SAG | J14: -8.55 | K14: 6.89 | L14: 587 | M14: 141 | N14: 2200 | O14: No | P14: =IF(OR($B$3="",H14="",I14="",J14="",K14=""),"",VLOOKUP($B$3,'RDM Ex. 2-11'!$A$6:$D$18,4,FALSE)) -> 900
H15: 800 | I15: CREST | J15: 6.89 | K15: -5.63 | L15: 564 | M15: 148 | N15: 1900 | O15: No | P15: =IF(OR($B$3="",H15="",I15="",J15="",K15=""),"",VLOOKUP($B$3,'RDM Ex. 2-11'!$A$6:$D$18,4,FALSE)) -> 900 | Q15: 289 | R15: 3650 | S15: No
H16: 400 | I16: SAG | J16: -5.63 | K16: -0.64 | L16: 549 | M16: 130 | N16: 650 | O16: No | P16: =IF(OR($B$3="",H16="",I16="",J16="",K16=""),"",VLOOKUP($B$3,'RDM Ex. 2-11'!$A$6:$D$18,4,FALSE)) -> 900
H17: 300 | I17: CREST | J17: -0.64 | K17: -4.31 | L17: 534 | M17: 133 | N17: 500 | O17: No | P17: =IF(OR($B$3="",H17="",I17="",J17="",K17=""),"",VLOOKUP($B$3,'RDM Ex. 2-11'!$A$6:$D$18,4,FALSE)) -> 900 | Q17: 289 | R17: 1100 | S17: No
H18: 400 | I18: SAG | J18: -4.31 | K18: 5.72 | L18: 550 | M18: 131 | N18: 1350 | O18: No | P18: =IF(OR($B$3="",H18="",I18="",J18="",K18=""),"",VLOOKUP($B$3,'RDM Ex. 2-11'!$A$6:$D$18,4,FALSE)) -> 900
H19: 400 | I19: CREST | J19: 5.72 | K19: 0 | L19: 550 | M19: 141 | N19: 850 | O19: No | P19: =IF(OR($B$3="",H19="",I19="",J19="",K19=""),"",VLOOKUP($B$3,'RDM Ex. 2-11'!$A$6:$D$18,4,FALSE)) -> 900 | Q19: 289 | R19: 1700 | S19: No
H20: 400 | I20: CREST | J20: 0 | K20: -6 | L20: 553 | M20: 142 | N20: 900 | O20: No | P20: =IF(OR($B$3="",H20="",I20="",J20="",K20=""),"",VLOOKUP($B$3,'RDM Ex. 2-11'!$A$6:$D$18,4,FALSE)) -> 900 | Q20: 289 | R20: 1750 | S20: No
H21: 540 | I21: SAG | J21: -6 | K21: 7.27 | L21: 569 | M21: 136 | N21: 1850 | O21: No | P21: =IF(OR($B$3="",H21="",I21="",J21="",K21=""),"",VLOOKUP($B$3,'RDM Ex. 2-11'!$A$6:$D$18,4,FALSE)) -> 900
H22: 600 | I22: CREST | J22: 7.27 | K22: 2.81 | L22: 569 | M22: 151 | N22: 700 | O22: No | P22: =IF(OR($B$3="",H22="",I22="",J22="",K22=""),"",VLOOKUP($B$3,'RDM Ex. 2-11'!$A$6:$D$18,4,FALSE)) -> 900 | Q22: 289 | R22: 1300 | S22: No
H23: 750 | I23: CREST | J23: 2.71 | K23: -8.19 | L23: 582 | M23: 157 | N23: 1750 | O23: No | P23: =IF(OR($B$3="",H23="",I23="",J23="",K23=""),"",VLOOKUP($B$3,'RDM Ex. 2-11'!$A$6:$D$18,4,FALSE)) -> 900 | Q23: 289 | R23: 3200 | S23: No
H24: 400 | I24: CREST | J24: -8.19 | K24: -10.71 | L24: 621 | M24: 179 | N24: 500 | O24: No | P24: =IF(OR($B$3="",H24="",I24="",J24="",K24=""),"",VLOOKUP($B$3,'RDM Ex. 2-11'!$A$6:$D$18,4,FALSE)) -> 900 | Q24: 289 | R24: 750 | S24: No
H25: 600 | I25: SAG | J25: -10.71 | K25: 0 | L25: 621 | M25: 150 | N25: 1650 | O25: No | P25: =IF(OR($B$3="",H25="",I25="",J25="",K25=""),"",VLOOKUP($B$3,'RDM Ex. 2-11'!$A$6:$D$18,4,FALSE)) -> 900
H26: 800 | I26: CREST | J26: 0 | K26: -3.73 | L26: 527 | M26: 129 | N26: 500 | O26: Yes | P26: =IF(OR($B$3="",H26="",I26="",J26="",K26=""),"",VLOOKUP($B$3,'RDM Ex. 2-11'!$A$6:$D$18,4,FALSE)) -> 900 | Q26: 289 | R26: 1100 | S26: No
H27: 400 | I27: SAG | J27: -3.73 | K27: 1.99 | L27: 527 | M27: 124 | N27: 750 | O27: No | P27: =IF(OR($B$3="",H27="",I27="",J27="",K27=""),"",VLOOKUP($B$3,'RDM Ex. 2-11'!$A$6:$D$18,4,FALSE)) -> 900
H28: 600 | I28: CREST | J28: 1.99 | K28: -8.55 | L28: 587 | M28: 160 | N28: 1700 | O28: No | P28: =IF(OR($B$3="",H28="",I28="",J28="",K28=""),"",VLOOKUP($B$3,'RDM Ex. 2-11'!$A$6:$D$18,4,FALSE)) -> 900 | Q28: 289 | R28: 3050 | S28: No
H29: 400 | I29: SAG | J29: -8.55 | K29: 2.072 | L29: 587 | M29: 141 | N29: 1500 | O29: No | P29: =IF(OR($B$3="",H29="",I29="",J29="",K29=""),"",VLOOKUP($B$3,'RDM Ex. 2-11'!$A$6:$D$18,4,FALSE)) -> 900
H30: 600 | I30: CREST | J30: 2.072 | K30: -3.71 | L30: 527 | M30: 129 | N30: 750 | O30: No | P30: =IF(OR($B$3="",H30="",I30="",J30="",K30=""),"",VLOOKUP($B$3,'RDM Ex. 2-11'!$A$6:$D$18,4,FALSE)) -> 900 | Q30: 289 | R30: 1700 | S30: No
H31: 600 | I31: CREST | J31: -3.71 | K31: -8.33 | L31: 584 | M31: 159 | N31: 750 | O31: No | P31: =IF(OR($B$3="",H31="",I31="",J31="",K31=""),"",VLOOKUP($B$3,'RDM Ex. 2-11'!$A$6:$D$18,4,FALSE)) -> 900 | Q31: 289 | R31: 1350 | S31: No
H32: 300 | I32: SAG | J32: -8.33 | K32: -1.26 | L32: 584 | M32: 140 | N32: 1000 | O32: No | P32: =IF(OR($B$3="",H32="",I32="",J32="",K32=""),"",VLOOKUP($B$3,'RDM Ex. 2-11'!$A$6:$D$18,4,FALSE)) -> 900
H33: 500 | I33: SAG | J33: -1.26 | K33: 4.32 | L33: 534 | M33: 126 | N33: 750 | O33: No | P33: =IF(OR($B$3="",H33="",I33="",J33="",K33=""),"",VLOOKUP($B$3,'RDM Ex. 2-11'!$A$6:$D$18,4,FALSE)) -> 900
H34: 500 | I34: CREST | J34: 4.32 | K34: -1.41 | L34: 534 | M34: 133 | N34: 800 | O34: No | P34: =IF(OR($B$3="",H34="",I34="",J34="",K34=""),"",VLOOKUP($B$3,'RDM Ex. 2-11'!$A$6:$D$18,4,FALSE)) -> 900 | Q34: 289 | R34: 1700 | S34: No
H35: 490 | I35: SAG | J35: -1.41 | K35: 4.94 | L35: 541 | M35: 128 | N35: 850 | O35: No | P35: =IF(OR($B$3="",H35="",I35="",J35="",K35=""),"",VLOOKUP($B$3,'RDM Ex. 2-11'!$A$6:$D$18,4,FALSE)) -> 900
P36: =IF(OR($B$3="",H36="",I36="",J36="",K36=""),"",VLOOKUP($B$3,'RDM Ex. 2-11'!$A$6:$D$18,4,FALSE)) -> 
P37: =IF(OR($B$3="",H37="",I37="",J37="",K37=""),"",VLOOKUP($B$3,'RDM Ex. 2-11'!$A$6:$D$18,4,FALSE)) -> 
P38: =IF(OR($B$3="",H38="",I38="",J38="",K38=""),"",VLOOKUP($B$3,'RDM Ex. 2-11'!$A$6:$D$18,4,FALSE)) -> 
P39: =IF(OR($B$3="",H39="",I39="",J39="",K39=""),"",VLOOKUP($B$3,'RDM Ex. 2-11'!$A$6:$D$18,4,FALSE)) -> 
P40: =IF(OR($B$3="",H40="",I40="",J40="",K40=""),"",VLOOKUP($B$3,'RDM Ex. 2-11'!$A$6:$D$18,4,FALSE)) -> 
P41: =IF(OR($B$3="",H41="",I41="",J41="",K41=""),"",VLOOKUP($B$3,'RDM Ex. 2-11'!$A$6:$D$18,4,FALSE)) -> 
P42: =IF(OR($B$3="",H42="",I42="",J42="",K42=""),"",VLOOKUP($B$3,'RDM Ex. 2-11'!$A$6:$D$18,4,FALSE)) -> 
P43: =IF(OR($B$3="",H43="",I43="",J43="",K43=""),"",VLOOKUP($B$3,'RDM Ex. 2-11'!$A$6:$D$18,4,FALSE)) -> 
P44: =IF(OR($B$3="",H44="",I44="",J44="",K44=""),"",VLOOKUP($B$3,'RDM Ex. 2-11'!$A$6:$D$18,4,FALSE)) -> 
P45: =IF(OR($B$3="",H45="",I45="",J45="",K45=""),"",VLOOKUP($B$3,'RDM Ex. 2-11'!$A$6:$D$18,4,FALSE)) -> 
P46: =IF(OR($B$3="",H46="",I46="",J46="",K46=""),"",VLOOKUP($B$3,'RDM Ex. 2-11'!$A$6:$D$18,4,FALSE)) -> 
P47: =IF(OR($B$3="",H47="",I47="",J47="",K47=""),"",VLOOKUP($B$3,'RDM Ex. 2-11'!$A$6:$D$18,4,FALSE)) -> 
P48: =IF(OR($B$3="",H48="",I48="",J48="",K48=""),"",VLOOKUP($B$3,'RDM Ex. 2-11'!$A$6:$D$18,4,FALSE)) -> 

Sheet Symmetrical Vertical Curves (hidden)
A1: VPI Station | B1: VPI Elevation | C1: Vertical Curve Length (L) | D1: Grade 1, G1 (%) | E1: Grade 2, G2 (%) | F1: Distance X1 (from VPC) | G1: Distance X2 (from VPT) | H1: Grade at X1 (%) | I1: Grade at X2 (%) | J1: X1 Station | K1: X2 Station
H2: =D2+((E2-D2)/C2)*F2 ->  | I2: =E2-((E2-D2)/C2)*G2 ->  | J2: =A2-C2/2+F2 -> 0 | K2: =A2+C2/2-G2 -> 0
A4: VPC Station = | B4: =A2-C2/2 -> 0
A5: VPC Elevation = | B5: =B2-D2*(C2/200) -> 0
A6: VPT Station = | B6: =B4+C2 -> 0
A7: VPT Elevation = | B7: =B2+E2*(C2/200) -> 0
A8: Z1 = | B8: =(F2^2)*(E2-D2)/(200*C2) -> 
A9: Tangent Elevation1 = | B9: =B5+D2*(F2/100) -> 0
A10: Curve Elevation1 = | B10: =B9+B8 -> 
A11: Z2 = | B11: =(G2^2)*(E2-D2)/(200*C2) -> 
A12: Tangent Elevation2 = | B12: =B7-E2*(G2/100) -> 0
A13: Curve Elevation2 = | B13: =B12+B11 -> 
A14: XT (from VPC) = | B14: =(C2*D2)/(D2-E2) -> 
A15: High or Low Point Station = | B15: =B4+B14 -> 
A16: High or Low Point Elevation = | B16: =B5-(C2*(D2^2))/((E2-D2)*200) -> 
A17: M = | B17: =((C2/2)^2)*(E2-D2)/(200*C2) -> 

Sheet RDM Ex. 2-11 (hidden)
A1: Exhibit 2-11
A2: Stopping Sight Distances & Minimum K-Values for Crest Vertical Curves
A3: Design Speed (V) (mph) | B3: Assumed Speeds | D3: Minimum PSD for Design (ft)
B4: Passed Vehicle (mph) | C4: Passing Vehicle (mph)
A6: 20 | B6: 8 | C6: 20 | D6: 400
A7: 25 | B7: 13 | C7: 25 | D7: 450
A8: 30 | B8: 18 | C8: 30 | D8: 500
A9: 35 | B9: 23 | C9: 35 | D9: 550
A10: 40 | B10: 28 | C10: 40 | D10: 600
A11: 45 | B11: 33 | C11: 45 | D11: 700
A12: 50 | B12: 38 | C12: 560 | D12: 800
A13: 55 | B13: 43 | C13: 55 | D13: 900
A14: 60 | B14: 48 | C14: 60 | D14: 1000
A15: 65 | B15: 53 | C15: 65 | D15: 1100
A16: 70 | B16: 58 | C16: 70 | D16: 1200
A17: 75 | B17: 63 | C17: 75 | D17: 1300
A18: 80 | B18: 68 | C18: 80 | D18: 1400
